bitfinex-derivatives/quotes_ETHF0:USTF0_20250224
["timestamp","ask_amount","ask_price","bid_price","bid_amount"]
[1740361847822,0.71721,2788.5,2788.4,0.0053775]
[1740361848222,3.7726,2788.8,2788.4,0.0053775]
[1740361848433,0.71721,2788.5,2788.4,0.0053775]
[1740361848628,0.7172,2788.6,2788.4,0.0053775]
[1740361848832,0.71721,2788.5,2788.4,0.0053775]
[1740361849226,0.7172,2788.6,2788.4,0.0053775]
[1740361849929,0.71721,2788.5,2788.4,0.0053775]
[1740361850128,0.71721,2788.5,2788.4,0.5681775]
[1740361851232,3.7726,2788.8,2788.4,0.5681775]
[1740361851540,0.7172,2788.6,2788.4,0.5681775]
[1740361851840,2.987,2788.9,2788.5,0.5291]
[1740361852037,0.71719,2788.6,2788.5,1.0816]
[1740361852238,0.71719,2788.6,2788.5,0.5291]
[1740361852434,2.987,2788.9,2788.5,0.5291]
[1740361852733,0.71719,2788.6,2788.5,0.5291]
[1740361853333,3.2078,2788.8,2788.4,0.0053775]
[1740361853535,1.79911,2788.5,2788.4,0.0053775]
[1740361855139,0.7172,2788.6,2788.4,0.0053775]
[1740361855327,3.2078,2788.8,2788.4,0.0053775]
[1740361855635,3.2078,2789.1,2788.7,0.71714]
[1740361855839,2.89861,2789.7,2788.8,1.0875]
[1740361856138,0.71711,2788.9,2788.8,1.0875]
[1740361856536,0.71707,2789.1,2788.8,1.0875]
[1740361856735,0.71709,2789.0,2788.8,1.0875]
[1740361857134,0.71703,2789.3,2788.8,1.80462]
[1740361857443,0.71708,2789.1,2788.8,1.0875]
[1740361858434,0.71705,2789.2,2788.8,1.0875]
[1740361858939,0.71705,2789.2,2788.8,1.80463]
[1740361859240,0.71701,2789.4,2789.0,0.71708]
[1740361859441,0.71701,2789.4,2789.1,2.453]
[1740361859637,3.2078,2789.5,2789.1,2.453]
[1740361860139,0.71699,2789.4,2789.1,2.453]
[1740361860535,0.71702,2789.3,2789.1,2.453]
[1740361861138,0.7222775,2789.8,2789.3,0.71699]
[1740361861336,0.7222775,2789.8,2789.2,3.2078]
[1740361861337,0.0053775,2789.8,2789.4,1.0764]
[1740361861540,1.79227,2789.7,2789.3,2.452]
[1740361861841,0.71704,2789.2,2789.0,5.6598]
[1740361862139,0.5665,2789.6,2789.0,5.6598]
[1740361862337,0.71704,2789.2,2789.0,5.6598]
[1740361862637,0.5707,2789.5,2789.0,5.6598]
[1740361862842,5.57096,2789.5,2788.9,1.0764]
[1740361863043,0.71708,2789.0,2788.9,1.0764]
[1740361863444,0.71708,2789.0,2788.9,0.524]
[1740361864043,0.71711,2788.9,2788.8,2.954]
[1740361864243,0.71714,2788.8,2788.7,5.6598]
[1740361864941,0.71716,2788.7,2788.6,2.452]
[1740361865143,0.71719,2788.6,2788.5,1.1215]
[1740361865331,0.71719,2788.6,2788.5,0.5501]
[1740361865737,3.2078,2788.9,2788.5,0.5501]
[1740361865738,0.71712,2788.9,2788.5,0.5501]
[1740361865939,0.5413,2789.2,2788.8,3.2078]
[1740361866136,0.71706,2789.1,2788.8,5.6598]
[1740361866337,0.71704,2789.2,2788.8,6.37693]
[1740361866545,0.71704,2789.2,2788.8,5.6598]
[1740361866738,0.71704,2789.2,2788.8,6.37693]
[1740361866937,0.71706,2789.1,2788.8,5.6598]
[1740361867146,0.71706,2789.1,2788.8,6.2117]
[1740361867446,0.71704,2789.2,2788.8,6.2117]
[1740361867644,0.71704,2789.2,2788.8,6.92883]
[1740361868045,3.7491,2789.5,2788.8,6.2117]
[1740361868639,3.7491,2789.5,2788.8,6.92882]
[1740361869143,0.5163,2789.6,2789.1,3.2078]
[1740361869344,0.0053775,2789.8,2789.3,0.717]
[1740361869542,0.0053775,2789.8,2789.4,3.2078]
[1740361869843,0.0053775,2789.8,2789.7,3.9247]
[1740361870049,0.0053775,2789.8,2789.7,5.6598]
[1740361870250,0.0053775,2789.8,2789.7,6.3767]
[1740361870548,0.71671,2790.5,2789.7,11.6598]
[1740361870739,1.0684,2790.6,2789.7,5.6598]
[1740361870943,1.0684,2790.6,2789.8,1.0823]
[1740361871143,0.5372,2790.6,2790.0,3.2078]
[1740361871348,0.71665,2790.7,2790.3,3.2078]
[1740361871551,0.71665,2790.7,2790.4,0.5246]
[1740361871850,3.2131775,2790.8,2790.4,0.5246]
[1740361872145,0.71665,2790.7,2790.5,2.452]
[1740361872443,3.2131775,2790.8,2790.5,2.452]
[1740361872444,3.9298175,2790.8,2790.5,2.452]
[1740361872647,0.0053775,2790.8,2790.6,3.2078]
[1740361873350,0.0053775,2790.8,2790.6,3.92446]
[1740361873753,3.2078,2791.6,2790.6,3.2078]
[1740361874055,3.2078,2791.6,2790.6,3.7311]
[1740361874253,0.71658,2791.0,2790.6,3.7311]
[1740361874552,0.71653,2791.2,2790.6,4.44775]
[1740361874747,3.2078,2791.6,2790.6,3.7311]
[1740361874947,0.71658,2791.0,2790.6,3.7311]
[1740361875149,0.7166,2790.9,2790.6,6.6851]
[1740361875349,0.71665,2790.7,2790.6,2.954]
[1740361878352,3.7577,2791.0,2790.6,2.954]
[1740361878662,0.71661,2790.9,2790.6,2.954]
[1740361878845,0.71654,2791.1,2790.7,5.6588]
[1740361879051,0.71659,2791.0,2790.8,0.572]
[1740361879252,0.7166,2790.9,2790.8,0.572]
[1740361880851,0.71665,2790.7,2790.6,2.954]
[1740361881659,0.71665,2790.7,2790.6,2.19634]
[1740361881955,0.71675,2790.3,2790.1,2.451]
[1740361882154,0.71675,2790.3,2789.9,2.451]
[1740361882556,0.71675,2790.3,2789.7,3.7487]
[1740361883251,3.2078,2790.9,2790.0,5.6588]
[1740361883459,0.71675,2790.3,2790.0,2.451]
[1740361885463,4.3256,2790.9,2790.0,2.451]
[1740361885665,4.3256,2790.9,2790.2,3.9299375]
[1740361885860,4.3256,2790.9,2790.3,0.5345]
[1740361886062,4.3256,2790.9,2790.4,2.451]
[1740361886357,0.71667,2790.7,2790.4,2.451]
[1740361886663,0.7167,2790.5,2790.4,2.451]
[1740361887164,0.71665,2790.7,2790.4,2.451]
[1740361887563,1.1065,2790.8,2790.4,2.451]
[1740361887759,0.71664,2790.8,2790.4,2.451]
[1740361888261,0.0053775,2791.2,2790.7,3.2078]
[1740361888459,0.71656,2791.1,2790.8,2.451]
[1740361888764,0.71657,2791.0,2790.9,0.5504]
[1740361889164,0.71656,2791.1,2790.9,0.5504]
[1740361889459,0.0053775,2791.2,2790.9,1.0715]
[1740361889656,0.71657,2791.0,2790.9,1.0715]
[1740361891065,0.71662,2790.8,2790.7,5.6588]
[1740361891456,0.71667,2790.6,2790.5,0.528]
[1740361891659,0.71667,2790.6,2790.5,2.451]
[1740361891856,0.71667,2790.6,2790.2,3.2131775]
[1740361891857,0.71675,2790.3,2790.2,0.0053775]
[1740361892266,1.0948,2790.5,2790.2,0.0053775]
[1740361892659,3.2078,2790.8,2790.2,0.0053775]
[1740361892856,0.7167,2790.6,2790.2,0.5484775]
[1740361893059,3.2078,2790.8,2790.2,0.5484775]
[1740361893268,0.5376,2790.9,2790.2,3.7562775]
[1740361893470,0.71673,2790.4,2790.2,3.7562775]
[1740361893663,0.71671,2790.5,2790.2,3.7562775]
[1740361893965,3.2078,2790.8,2790.2,0.5484775]
[1740361894160,0.71675,2790.3,2790.2,0.0053775]
[1740361894361,0.71675,2790.3,2790.2,2.4563775]
[1740361894563,0.71675,2790.3,2790.2,0.0053775]
[1740361894862,0.71675,2790.3,2790.2,7.5e-06]
[1740361895062,0.71696,2789.5,2789.4,2.451]
[1740361895261,0.71698,2789.4,2789.3,2.451]
[1740361895458,0.71695,2789.6,2789.3,2.451]
[1740361896260,0.0053775,2789.7,2789.3,2.451]
[1740361896661,0.71698,2789.4,2789.3,2.451]
[1740361897266,0.71701,2789.3,2789.2,0.0053775]
[1740361903168,0.71701,2789.3,2789.2,7.5e-06]
[1740361907567,3.2078,2789.5,2789.2,7.5e-06]
[1740361907877,3.92477,2789.5,2789.2,7.5e-06]
[1740361908379,3.2078,2789.5,2789.3,40.8]
[1740361908568,0.717,2789.4,2789.3,40.8]
[1740361909071,0.71694,2789.6,2789.2,0.7170275]
[1740361909270,0.71701,2789.3,2789.2,7.5e-06]
[1740361909475,0.0053775,2789.7,2789.2,40.8000075]
[1740361909678,0.71699,2789.4,2789.2,40.8000075]
[1740361910178,0.71699,2789.4,2789.2,7.5e-06]
[1740361910574,0.71697,2789.5,2789.2,7.5e-06]
[1740361911173,0.71699,2789.4,2789.2,7.5e-06]
[1740361911378,0.71701,2789.3,2789.2,7.5e-06]
[1740361911579,0.71698,2789.4,2789.2,7.5e-06]
[1740361912271,0.71696,2789.5,2789.2,7.5e-06]
[1740361912468,0.71694,2789.6,2789.2,7.5e-06]
[1740361912675,0.71694,2789.6,2789.2,0.7170275]
[1740361912868,0.71694,2789.6,2789.4,3.2078]
[1740361913071,0.0053775,2789.7,2789.5,2.451]
[1740361913270,0.0053775,2789.7,2789.5,3.72664]
[1740361913677,0.0053775,2789.7,2789.5,3.0097]
[1740361913873,0.0053775,2789.7,2789.6,0.71693]
[1740361914077,0.0053775,2789.7,2789.6,1.25303]
[1740361914376,0.0053775,2789.7,2789.6,7.25303]
[1740361914678,1.1114,2790.7,2789.6,6.5361]
[1740361914879,1.1114,2790.7,2790.2,0.71677]
[1740361914880,0.71667,2790.6,2790.2,0.71677]
[1740361915079,0.71667,2790.6,2790.3,2.9823]
[1740361915476,1.82807,2790.7,2790.3,2.9823]
[1740361915678,0.71668,2790.6,2790.3,2.9823]
[1740361916078,0.71671,2790.5,2790.3,2.9823]
[1740361917375,0.71669,2790.6,2790.3,2.9823]
[1740361917883,0.0053775,2790.8,2790.4,4.45111]
[1740361918073,0.0053775,2790.8,2790.4,3.7344]
[1740361918275,0.7167,2790.5,2790.4,3.7344]
[1740361918474,3.2131775,2790.8,2790.3,2.451]
[1740361918681,0.71672,2790.4,2790.3,2.451]
[1740361920374,1.79182,2790.4,2789.4,6.1618]
[1740361920574,0.71696,2789.5,2789.4,1.1005]
[1740361920779,0.71689,2789.8,2789.5,2.451]
[1740361921078,0.71692,2789.7,2789.5,2.451]
[1740361921278,0.5472,2790.1,2789.5,2.451]
[1740361921475,0.71686,2789.9,2789.5,2.451]
[1740361921680,0.71689,2789.8,2789.5,2.451]
[1740361922485,0.71689,2789.8,2789.2,7.5e-06]
[1740361922486,0.71701,2789.3,2789.2,7.5e-06]
[1740361922988,3.2078,2789.6,2789.2,7.5e-06]
[1740361923285,0.71701,2789.3,2789.2,7.5e-06]
[1740361924484,3.2078,2789.6,2789.2,7.5e-06]
[1740361924881,0.71688,2789.8,2789.3,0.71699]
[1740361925083,0.71698,2789.4,2789.2,3.2078075]
[1740361925281,0.71701,2789.3,2789.2,3.2078075]
[1740361925488,0.71698,2789.5,2789.2,3.2078075]
[1740361925787,4.99992,2790.0,2789.2,3.2078075]
[1740361925788,3.2078,2790.0,2789.2,3.2078075]
[1740361925985,0.71692,2789.7,2789.2,3.9248275]
[1740361926387,0.71697,2789.5,2789.2,3.2078075]
[1740361926579,3.2078,2790.0,2789.2,3.2078075]
[1740361926784,0.71695,2789.6,2789.2,3.2078075]
[1740361927290,3.2078,2790.0,2789.2,3.2078075]
[1740361927291,0.717,2789.4,2789.2,3.2078075]
[1740361927586,3.2078,2790.0,2789.2,6.1618075]
[1740361927587,0.71694,2789.6,2789.2,6.1618075]
[1740361928089,3.2078,2790.0,2789.3,0.5542]
[1740361928290,0.71689,2789.8,2789.4,0.71696]
[1740361928487,0.71689,2789.8,2789.5,2.982]
[1740361928687,3.2078,2790.0,2789.5,2.982]
[1740361928890,3.92465,2790.0,2789.5,3.69894]
[1740361929489,0.5472,2790.1,2789.7,3.2078]
[1740361929687,0.71687,2789.9,2789.7,3.2078]
[1740361929891,0.5472,2790.1,2789.7,3.2078]
[1740361930087,0.71686,2789.9,2789.7,3.2078]
[1740361930585,0.71684,2790.0,2789.7,3.2078]
[1740361930786,0.5472,2790.1,2789.7,3.2078]
[1740361930994,0.71687,2789.9,2789.7,3.2078]
[1740361931288,0.71688,2789.8,2789.7,3.2078]
[1740361931592,0.5472,2790.1,2789.7,3.2078]
[1740361931593,0.71687,2789.9,2789.7,3.2078]
[1740361932393,0.5472,2790.1,2789.5,2.982]
[1740361932597,0.71693,2789.6,2789.5,2.451]
[1740361932895,3.755,2790.1,2789.5,2.451]
[1740361933490,0.71693,2789.6,2789.5,2.451]
[1740361934194,0.71701,2789.3,2789.2,2.9540075]
[1740361934395,0.71701,2789.3,2789.2,2.4510075]
[1740361934796,0.542,2789.6,2789.2,2.4510075]
[1740361934997,0.71698,2789.5,2789.2,2.4510075]
[1740361935298,0.542,2789.6,2789.2,2.4510075]
[1740361935593,0.71701,2789.3,2789.2,7.5e-06]
[1740361937197,0.73416437,2789.3,2789.2,7.5e-06]
[1740361938494,0.75131874,2789.3,2789.2,7.5e-06]
[1740361938890,0.03430874,2789.3,2789.2,7.5e-06]
[1740361939199,0.75131874,2789.3,2789.2,7.5e-06]
[1740361940005,0.03430874,2789.3,2789.2,7.5e-06]
[1740361941297,0.03430874,2789.3,2789.2,0.7170375]
[1740361942001,0.03430874,2789.3,2789.2,7.5e-06]
[1740361942904,0.03430874,2789.3,2789.2,3.1680375]
[1740361944204,0.05146684,2789.3,2789.2,2.4510075]
[1740361944408,0.05146684,2789.3,2789.2,3.1680375]
[1740361945497,0.05146684,2789.3,2789.2,2.4510075]
[1740361946909,0.05146684,2789.3,2789.2,3.1680375]
[1740361947409,6.1948,2790.7,2789.2,11.4050075]
[1740361947602,4.302,2790.7,2790.1,3.2078]
[1740361947802,0.71667,2790.6,2790.2,2.451]
[1740361948104,4.302,2790.7,2790.2,3.72366]
[1740361948105,5.01866,2790.7,2790.2,3.72366]
[1740361948409,5.01866,2790.7,2790.2,4.24136]
[1740361948608,4.302,2790.7,2790.2,3.5246]
[1740361948804,0.0053775,2790.8,2790.4,3.2078]
[1740361949010,0.0053775,2790.8,2790.5,0.71667]
[1740361949306,0.0053775,2790.8,2790.7,3.2078]
[1740361949702,0.0053775,2790.8,2790.7,3.92445]
[1740361950113,0.0053775,2790.8,2790.7,3.2078]
[1740361950305,0.0053775,2790.8,2790.7,3.92445]
[1740361950507,0.0053775,2790.8,2790.7,3.2078]
[1740361950708,0.0053775,2790.8,2790.7,3.92445]
[1740361950901,0.0053775,2790.8,2790.7,3.2078]
[1740361951505,0.0053775,2790.8,2790.7,5.6578]
[1740361951705,0.0053775,2790.8,2790.3,3.4993]
[1740361951706,0.0053775,2790.8,2790.3,6.1618]
[1740361951915,0.71672,2790.4,2790.3,2.954]
[1740361952214,0.71672,2790.4,2790.3,5.404]
[1740361953409,1.26711,2790.5,2790.3,5.404]
[1740361953609,0.5504,2790.5,2790.3,5.404]
[1740361954113,0.5615,2790.6,2790.3,2.45]
[1740361954312,0.0053775,2790.8,2790.4,3.2078]
[1740361954610,0.7220075,2790.8,2790.4,3.2078]
[1740361955208,0.0053775,2790.8,2790.4,3.92452]
[1740361955409,0.7219975,2790.8,2790.4,3.2078]
[1740361955810,0.71672,2790.4,2790.3,2.45]
[1740361956715,0.71676,2790.3,2790.1,3.2078]
[1740361956915,0.71676,2790.3,2790.2,2.45]
[1740361958017,0.5596,2790.7,2790.1,3.2078]
[1740361958018,0.71678,2790.2,2790.1,3.2078]
[1740361958313,0.71685,2789.9,2789.8,2.45]
[1740361958514,0.7169,2789.7,2789.6,19.88]
[1740361958819,0.71694,2789.6,2789.5,2.45]
[1740361959014,0.71693,2789.6,2789.5,5.6578]
[1740361960220,0.717,2789.4,2789.2,3.2078075]
[1740361960417,0.5255,2790.0,2789.6,0.71691]
[1740361960716,0.5259,2790.5,2789.9,0.71685]
[1740361960921,0.5259,2790.5,2790.0,2.45]
[1740361960922,0.7168,2790.1,2790.0,2.45]
[1740361962118,0.71683,2790.0,2789.9,2.45]
[1740361963119,0.71696,2789.5,2789.4,0.5642]
[1740361963318,0.71693,2789.6,2789.4,3.0142]
[1740361963511,0.71692,2789.7,2789.4,3.73118]
[1740361963818,0.71692,2789.7,2789.4,3.0142]
[1740361964022,0.5231,2790.0,2789.4,3.0142]
[1740361964223,0.71694,2789.6,2789.4,3.0142]
[1740361964517,0.71701,2789.3,2789.2,7.5e-06]
[1740361965021,1.01232342,2789.3,2789.2,7.5e-06]
[1740361965217,7.01232342,2789.3,2789.2,7.5e-06]
[1740361965417,7.58162342,2789.3,2789.2,7.5e-06]
[1740361965622,7.28631,2789.3,2789.2,7.5e-06]
[1740361965917,1.28631,2789.3,2789.2,7.5e-06]
[1740361969722,0.5484,2789.4,2789.2,7.5e-06]
[1740361969920,1.26539,2789.4,2789.2,7.5e-06]
[1740361970116,0.71701,2789.3,2789.2,7.5e-06]
[1740361971423,0.5484,2789.4,2789.2,7.5e-06]
[1740361971620,3.2078,2789.5,2789.2,7.5e-06]
[1740361971930,0.71699,2789.4,2789.2,7.5e-06]
[1740361972322,0.717,2789.4,2789.2,7.5e-06]
[1740361972625,0.71701,2789.3,2789.2,7.5e-06]
[1740361973127,3.2078,2789.5,2789.2,7.5e-06]
[1740361973327,0.717,2789.4,2789.2,7.5e-06]
[1740361973729,3.92477,2789.5,2789.2,7.5e-06]
[1740361974124,0.71694,2789.6,2789.2,7.5e-06]
[1740361975415,3.2078,2790.0,2789.4,3.2078]
[1740361975622,0.71701,2789.3,2789.2,7.5e-06]
[1740361988732,17.385,2789.3,2787.7,1.05274735]
[1740361988933,0.71747,2787.5,2787.4,0.5337]
[1740361990550,3.2131775,2787.7,2787.4,0.5337]
[1740361990751,0.71747,2787.5,2787.4,0.5337]
[1740361992452,0.71747,2787.6,2787.4,0.5337]
[1740361992853,3.2131775,2787.7,2787.4,0.5337]
[1740361993346,0.71747,2787.5,2787.4,0.5337]
[1740361994261,3.2131775,2787.7,2787.4,0.5337]
[1740361994446,0.0053775,2787.7,2787.4,3.7415]
[1740361994647,0.0053775,2787.7,2787.5,2.451]
[1740361994853,0.71744,2787.6,2787.5,2.451]
[1740361996047,0.0053775,2787.7,2787.4,2.451]
[1740361996255,0.71747,2787.5,2787.4,2.451]
[1740361999751,0.0053775,2787.7,2787.4,2.451]
[1740361999956,0.71746,2787.6,2787.4,2.451]
[1740362000151,0.71747,2787.5,2787.4,2.451]
[1740362000563,0.0053775,2787.7,2787.4,2.451]
[1740362000758,0.71745,2787.6,2787.4,2.451]
[1740362001258,0.0053775,2787.7,2787.4,2.451]
[1740362001452,0.71745,2787.6,2787.4,2.451]
[1740362002566,0.71747,2787.5,2787.4,2.451]
[1740362002766,0.71746,2787.6,2787.4,2.451]
[1740362003162,0.0053775,2787.7,2787.4,2.451]
[1740362003371,0.71747,2787.5,2787.4,2.451]
[1740362004057,0.0053775,2787.7,2787.4,2.451]
[1740362004461,0.71721,2788.5,2788.1,0.7173]
[1740362004662,0.71726,2788.3,2788.2,3.0115]
[1740362004965,0.71726,2788.3,2788.2,2.465]
[1740362005163,1.25724,2788.4,2788.2,2.465]
[1740362005459,3.2078,2788.6,2788.2,2.465]
[1740362005460,0.7225875,2788.6,2788.2,2.465]
[1740362005660,0.0053775,2788.6,2788.2,2.465]
[1740362005859,0.0053775,2788.6,2788.2,3.18228]
[1740362006069,0.71723,2788.5,2788.2,2.465]
[1740362006970,0.71726,2788.3,2788.2,2.465]
[1740362007173,0.71726,2788.4,2788.2,2.465]
[1740362007671,0.5342,2788.5,2788.2,2.465]
[1740362007873,0.71726,2788.3,2788.2,2.465]
[1740362008365,0.71732,2788.1,2788.0,2.462]
[1740362008773,3.2078,2788.3,2788.0,2.462]
[1740362008965,0.71728,2788.3,2788.0,2.462]
[1740362010269,0.5342,2788.5,2788.0,2.462]
[1740362010470,0.71731,2788.2,2788.0,2.462]
[1740362010668,0.5342,2788.5,2788.0,2.462]
[1740362010669,0.71732,2788.1,2788.0,2.462]
[1740362010869,0.7173,2788.2,2788.0,2.462]
[1740362011272,0.71727,2788.3,2788.0,2.462]
[1740362011475,0.5342,2788.5,2788.0,2.462]
[1740362011668,0.71729,2788.2,2788.0,2.462]
[1740362012367,0.71732,2788.1,2788.0,2.462]
[1740362012572,0.7173,2788.2,2788.0,2.462]
[1740362013072,0.71725,2788.4,2788.0,3.17934]
[1740362013268,0.71727,2788.3,2788.0,2.462]
[1740362013670,0.5342,2788.5,2788.0,5.6698]
[1740362013869,0.71728,2788.3,2788.0,2.462]
[1740362014476,0.71725,2788.4,2788.0,3.17934]
[1740362014678,0.71726,2788.3,2788.0,2.462]
[1740362015177,0.71725,2788.4,2788.0,3.17934]
[1740362015377,0.71727,2788.3,2788.0,2.462]
[1740362015578,0.71732,2788.1,2788.0,2.462]
[1740362015875,3.2078,2788.3,2787.3,3.7716]
[1740362016074,0.71742,2787.7,2787.6,2.452]
[1740362016269,0.71744,2787.6,2787.5,2.452]
[1740362016676,0.5166,2787.9,2787.4,2.452]
[1740362016880,0.71743,2787.7,2787.4,2.452]
[1740362017178,0.5166,2787.9,2787.4,2.452]
[1740362017379,0.71744,2787.6,2787.4,2.452]
[1740362017778,0.71747,2787.5,2787.4,2.452]
[1740362017976,0.71747,2787.5,2787.3,3.7295]
[1740362018175,0.5166,2787.9,2787.4,2.451]
[1740362018577,0.71747,2787.5,2787.4,2.451]
[1740362018781,0.71747,2787.5,2787.3,2.9727]
[1740362019177,0.71749,2787.5,2787.3,2.9727]
[1740362019480,0.71746,2787.6,2787.3,2.9727]
[1740362019687,0.5166,2787.9,2787.3,2.9727]
[1740362019884,0.71741,2787.8,2787.3,6.898]
[1740362020179,0.71741,2787.8,2787.3,7.4272]
[1740362020381,0.71743,2787.7,2787.3,7.4272]
[1740362020876,0.71741,2787.8,2787.4,0.71749]
[1740362021270,0.5166,2787.9,2787.3,7.4272]
[1740362021476,0.5166,2787.9,2787.3,6.7097]
[1740362021682,0.71743,2787.7,2787.3,7.42721]
[1740362022284,0.7174,2787.8,2787.4,0.71749]
[1740362022579,1.23397,2787.9,2787.5,0.71745]
[1740362022979,0.71735,2788.0,2787.6,3.92523]
[1740362023374,0.71735,2788.0,2787.7,2.451]
[1740362023583,0.5554,2788.2,2787.7,2.451]
[1740362023782,0.71734,2788.1,2787.7,3.16841]
[1740362023984,3.2078,2788.3,2787.7,2.451]
[1740362024284,0.71737,2787.9,2787.7,2.451]
[1740362025085,3.2078,2788.3,2787.7,3.16841]
[1740362025280,0.7173,2788.2,2787.8,0.71737]
[1740362025485,0.7173,2788.2,2787.9,0.5568]
[1740362025885,3.92508,2788.3,2787.9,1.27417]
[1740362026076,1.1328,2788.5,2787.9,3.7646]
[1740362026281,0.71725,2788.4,2788.0,0.71733]
[1740362026488,0.71724,2788.4,2788.1,2.451]
[1740362027187,0.71725,2788.4,2788.1,2.451]
[1740362027390,0.5594,2788.5,2788.1,2.451]
[1740362027693,1.27664,2788.5,2788.1,3.16831]
[1740362028387,0.5594,2788.5,2788.1,2.451]
[1740362028779,0.0053775,2788.6,2788.2,3.2078]
[1740362028985,0.0053775,2788.6,2788.1,2.451]
[1740362029190,0.0053775,2788.6,2788.4,0.71724]
[1740362029490,0.0053775,2788.6,2788.5,4.26791]
[1740362030084,0.0053775,2788.6,2788.5,10.26791]
[1740362030287,0.5716,2789.3,2789.0,0.71707]
[1740362030578,3.92466,2789.9,2789.4,0.71697]
[1740362030782,3.92466,2789.9,2789.5,3.0149]
[1740362031194,0.71682,2790.1,2789.6,3.92473]
[1740362031379,0.0053775,2790.0,2789.6,3.2078]
[1740362031585,0.71689,2789.8,2789.5,3.0149]
[1740362031890,0.71686,2789.9,2789.5,3.0149]
[1740362032480,0.0053775,2790.0,2789.5,0.5639]
[1740362032786,0.0053775,2790.0,2789.4,3.2131775]
[1740362032787,3.2078,2789.8,2789.4,2.451]
[1740362033080,1.26482,2789.7,2789.4,2.451]
[1740362033390,0.71696,2789.5,2789.4,2.451]
[1740362034691,0.71701,2789.3,2789.2,2.4553775]
[1740362035284,3.2078,2789.5,2789.2,2.4553775]
[1740362035587,0.71701,2789.3,2789.2,2.4553775]
[1740362035786,1.0836,2789.6,2789.2,2.4553775]
[1740362035983,0.71696,2789.5,2789.2,2.4553775]
[1740362036491,0.71698,2789.4,2789.2,2.4553775]
[1740362036685,0.71697,2789.5,2789.2,2.4553775]
[1740362036883,0.5377,2789.6,2789.2,2.4553775]
[1740362036884,0.71701,2789.3,2789.2,2.4553775]
[1740362037086,0.5377,2789.6,2789.2,2.4553775]
[1740362037280,0.71696,2789.5,2789.2,2.4553775]
[1740362037486,0.5377,2789.6,2789.2,2.4553775]
[1740362037686,0.5479,2789.7,2789.2,3.1723975]
[1740362037889,0.71695,2789.6,2789.2,2.4553775]
[1740362039590,3.2078,2789.9,2789.2,2.4553775]
[1740362039896,0.71698,2789.5,2789.2,2.4553775]
[1740362040186,0.71694,2789.6,2789.2,3.1724075]
[1740362040390,0.71696,2789.5,2789.2,2.4553775]
[1740362040984,0.71701,2789.3,2789.2,2.4553775]
[1740362041191,0.71701,2789.3,2789.2,0.0053775]
[1740362041383,4.99995,2789.9,2789.2,2.4553775]
[1740362041587,0.71697,2789.5,2789.2,2.4553775]
[1740362041896,0.71701,2789.3,2789.2,0.0053775]
[1740362042190,0.71701,2789.3,2789.2,2.4553775]
[1740362042489,1.79259,2789.2,2788.8,2.45]
[1740362042790,0.71716,2788.7,2788.6,2.45]
[1740362044286,0.5657,2788.9,2788.6,2.45]
[1740362044488,0.71715,2788.8,2788.6,2.45]
[1740362045695,0.71716,2788.7,2788.6,2.45]
[1740362045897,0.71721,2788.5,2788.4,2.4553775]
[1740362046084,0.5463,2788.8,2788.4,2.4553775]
[1740362046290,0.71718,2788.7,2788.4,2.4553775]
[1740362046490,0.5463,2788.8,2788.4,2.4553775]
[1740362046893,0.71716,2788.7,2788.4,2.4553775]
[1740362047098,0.5463,2788.8,2788.4,2.4553775]
[1740362047397,0.71721,2788.5,2788.4,2.4553775]
[1740362047597,0.71721,2788.5,2788.4,0.0053775]
[1740362047899,0.5463,2788.8,2788.4,0.0053775]
[1740362048594,0.71721,2788.5,2788.4,0.0053775]
[1740362049794,3.2078,2788.7,2788.4,0.0053775]
[1740362050191,0.71721,2788.5,2788.4,0.0053775]
[1740362055097,0.71737,2787.9,2787.8,3.2078]
[1740362055297,0.71737,2787.9,2787.8,5.6578]
[1740362055799,0.71739,2787.8,2787.7,3.0215]
[1740362056199,0.5619,2788.2,2787.9,0.71737]
[1740362056391,0.0053775,2788.0,2787.9,0.71737]
[1740362056587,0.0053775,2788.0,2787.9,6.37517]
[1740362057998,0.0053775,2788.0,2787.9,2.45]
[1740362058190,0.0053775,2788.0,2787.7,0.5715]
[1740362058391,0.0053775,2788.0,2787.8,2.45]
[1740362058703,0.71737,2787.9,2787.8,2.45]
[1740362059205,1.24747,2787.9,2787.8,2.45]
[1740362059399,0.5301,2787.9,2787.6,2.45]
[1740362059795,1.24748,2787.9,2787.6,2.45]
[1740362060600,0.7174,2787.8,2787.6,2.45]
[1740362061208,1.24748,2787.9,2787.6,2.45]
[1740362061703,0.7174,2787.8,2787.6,5.6578]
[1740362062203,0.71742,2787.7,2787.6,5.6578]
[1740362062397,0.71742,2787.7,2787.6,2.45]
[1740362062896,3.2131775,2788.0,2787.5,0.5500775]
[1740362063103,0.71744,2787.6,2787.5,0.5500775]
[1740362063298,3.2131775,2788.0,2787.5,3.0000775]
[1740362063500,0.71743,2787.7,2787.5,3.0000775]
[1740362063695,3.2131775,2788.0,2787.5,3.0000775]
[1740362063901,3.2131775,2788.0,2787.5,0.0053775]
[1740362064096,0.71744,2787.6,2787.5,2.4553775]
[1740362064906,0.71744,2787.6,2787.5,0.0053775]
[1740362066306,3.92524,2787.6,2787.5,0.0053775]
[1740362068712,3.2078,2787.6,2786.9,2.45]
[1740362069006,0.5568,2787.5,2786.9,2.45]
[1740362069205,0.71759,2787.1,2786.9,2.45]
[1740362069605,0.5568,2787.5,2786.9,2.45]
[1740362069806,0.7176,2787.0,2786.9,2.45]
[1740362070506,0.5568,2787.5,2786.8,0.5211]
[1740362070703,0.71762,2786.9,2786.8,2.9721]